bitfinex-derivatives/quotes_SOLF0:USTF0_20260114
["timestamp","ask_amount","ask_price","bid_price","bid_amount"]
[1768420359064,61.52474643,146.79,146.72,63.40190761]
[1768420359264,63.55858028,146.78,146.69,67.46006472]
[1768420359873,61.52500006,146.75,146.68,6.1362]
[1768420360373,61.52500006,146.75,146.7,61.32446472]
[1768420360374,0.04386267,146.75,146.7,61.32446472]
[1768420360770,0.04386267,146.75,146.71,0.04613518]
[1768420360972,63.60244295,146.75,146.71,0.04613518]
[1768420361272,61.52500006,146.75,146.67,61.32446472]
[1768420361579,63.60244295,146.75,146.67,61.32446472]
[1768420362060,63.60244295,146.75,146.7,0.04619502]
[1768420362267,61.52500006,146.75,146.7,0.04619502]
[1768420366470,0.04386267,146.75,146.7,61.37065974]
[1768420367062,0.04386267,146.75,146.7,0.04619502]
[1768420367265,61.52500006,146.75,146.66,61.32446472]
[1768420367463,2.07744289,146.74,146.66,61.32446472]
[1768420367676,63.55858028,146.74,146.66,61.32446472]
[1768420368271,0.04516328,146.71,146.69,0.04597133]
[1768420372478,63.55858028,146.74,146.69,0.04597133]
[1768420372776,61.48113739,146.74,146.69,0.04597133]
[1768420372981,62.25925456,146.76,146.69,0.04597133]
[1768420373277,62.25925456,146.76,146.68,60.77082315]
[1768420373675,0.04935244,146.73,146.71,0.04874795]
[1768420374280,60.23116411,146.73,146.65,60.77082315]
[1768420375181,60.23116411,146.73,146.68,0.04238666]
[1768420375773,60.23116411,146.73,146.68,6.17868666]
[1768420377182,60.23116411,146.73,146.68,0.04238666]
[1768420381486,60.23116411,146.73,146.68,6.17868666]
[1768420382284,60.23116411,146.73,146.69,6.1359]
[1768420382579,60.18181167,146.75,146.69,6.1359]
[1768420382781,60.18181167,146.75,146.69,66.90672315]
[1768420383179,2.07744289,146.76,146.69,66.90672315]
[1768420383588,60.18181167,146.77,146.71,0.05035212]
[1768420384282,60.18181167,146.75,146.67,5.0]
[1768420384484,60.18181167,146.75,146.67,65.77082315]
[1768420385188,60.18181167,146.69,146.61,60.77082315]
[1768420385483,0.05087921,146.66,146.59,2.07744289]
[1768420385685,0.05087921,146.66,146.61,6.1392]
[1768420386089,0.05087921,146.66,146.59,62.84826604]
[1768420386388,2.07744289,146.7,146.62,60.77082315]
[1768420386591,62.25925456,146.7,146.62,60.77082315]
[1768420387396,62.25925456,146.7,146.65,0.05032699]
[1768420388391,0.04633139,146.69,146.65,0.05032699]
[1768420389491,60.18181167,146.73,146.65,60.82115014]
[1768420389884,60.18181167,146.73,146.61,95.4978]
[1768420389885,60.18181167,146.69,146.6,62.84826604]
[1768420390288,2.07744289,146.7,146.6,62.84826604]
[1768420390687,62.25925456,146.72,146.63,60.77082315]
[1768420390886,62.25925456,146.72,146.66,0.05135177]
[1768420391286,60.18181167,146.72,146.66,0.05135177]
[1768420392097,0.04322451,146.7,146.66,0.05135177]
[1768420394496,60.22503618,146.7,146.66,0.05135177]
[1768420394697,62.30247907,146.7,146.63,60.77082315]
[1768420395697,62.30247907,146.7,146.65,0.05127678]
[1768420397887,60.22503618,146.7,146.65,0.05127678]
[1768420399196,0.04322451,146.7,146.65,60.82209993]
[1768420399395,62.25925456,146.73,146.65,60.82209993]
[1768420400202,2.07744289,146.74,146.66,60.77082315]
[1768420400498,0.00933057,146.71,146.69,0.05151174]
[1768420400702,62.25925456,146.76,146.69,0.05151174]
[1768420401605,0.04582756,146.74,146.69,0.05151174]
[1768420403203,0.04582756,146.74,146.69,65.22858758]
[1768420404407,0.04582756,146.74,146.7,65.17707584]
[1768420405802,0.04582756,146.74,146.71,6.1351]
[1768420407302,60.34815265,146.81,146.72,65.17707584]
[1768420407500,60.34815265,146.81,146.72,67.25451873]
[1768420408303,0.0483945,146.78,146.75,0.04734091]
[1768420409511,60.34815265,146.76,146.67,65.17707584]
[1768420409705,60.34815265,146.74,146.65,80.54]
[1768420410210,60.34815265,146.74,146.65,145.71707584]
[1768420410605,0.05055559,146.71,146.68,0.04810482]
[1768420414907,60.39870824,146.71,146.61,65.17707584]
[1768420415114,60.34815265,146.71,146.62,6.1388]
[1768420415308,63.59872602,146.71,146.6,80.54]
[1768420415616,60.34815265,146.68,146.58,65.17707584]
[1768420415913,0.05080228,146.64,146.62,0.04683888]
[1768420418915,0.00269746,146.64,146.62,0.04683888]
[1768420420820,60.34815265,146.68,146.62,0.04683888]
[1768420421420,63.59872602,146.71,146.62,71.36261472]
[1768420421612,63.59872602,146.71,146.62,71.31577584]
[1768420421814,0.04334507,146.68,146.65,0.05233882]
[1768420428821,60.39149772,146.68,146.61,6.1392]
[1768420429125,60.34815265,146.68,146.61,71.31627584]
[1768420429820,3.25057337,146.71,146.61,65.17707584]
[1768420430021,3.25057337,146.71,146.63,0.0467841]
[1768420430022,63.59872602,146.71,146.63,0.0467841]
[1768420430430,63.59872602,146.71,146.63,65.83939847]
[1768420431131,0.04295554,146.68,146.63,65.83939847]
[1768420432735,0.04295554,146.68,146.63,71.97779847]
[1768420433229,69.49549712,146.73,146.63,71.97779847]
[1768420433419,69.49549712,146.73,146.63,71.93101437]
[1768420434125,0.05180076,146.69,146.67,0.04533841]
[1768420437232,69.49549712,146.73,146.67,0.04533841]
[1768420437233,66.24492375,146.73,146.67,0.04533841]
[1768420438129,0.04891197,146.71,146.67,65.83795278]
[1768420438332,66.24492375,146.79,146.68,65.79261437]
[1768420438531,66.24492375,146.82,146.74,6.1337]
[1768420439231,66.24492375,146.82,146.73,65.79261437]
[1768420439436,0.04818923,146.79,146.73,65.79261437]
[1768420439934,0.04818923,146.79,146.73,71.92681437]
[1768420440434,0.04818923,146.79,146.75,0.04431217]
[1768420446443,69.54368635,146.79,146.69,6.1356]
[1768420446642,69.49549712,146.79,146.69,6.1356]
[1768420446845,69.49549712,146.79,146.68,80.58]
[1768420446846,66.24492375,146.76,146.67,71.92931437]
[1768420447235,66.24492375,146.76,146.67,65.79261437]
[1768420447436,66.24492375,146.76,146.7,0.04853746]
[1768420448040,69.49549712,146.79,146.7,65.84115183]
[1768420448244,66.24492375,146.79,146.7,71.92801437]
[1768420448544,0.04865158,146.76,146.73,0.04910221]
[1768420449142,66.24492375,146.82,146.73,65.84171658]
[1768420449443,66.24492375,146.82,146.73,65.79261437]
[1768420450343,66.24492375,146.82,146.76,0.04431418]
[1768420450344,0.04598148,146.79,146.76,0.04431418]
[1768420452940,66.29090523,146.79,146.7,70.79261437]
[1768420453136,66.24492375,146.79,146.7,65.79261437]
[1768420454040,0.05154369,146.76,146.73,0.05085013]
[1768420454742,66.29646744,146.76,146.7,6.1355]
[1768420454942,66.29646744,146.76,146.67,65.79261437]
[1768420455140,66.24492375,146.76,146.67,65.79261437]
[1768420455742,66.24492375,146.76,146.7,0.05119764]
[1768420455936,0.05010341,146.73,146.7,65.84381201]
[1768420456139,75.62709712,146.8,146.7,65.84381201]
[1768420456453,75.62709712,146.8,146.7,65.79261437]
[1768420457251,66.29697998,146.76,146.67,65.79261437]
[1768420457439,66.24492375,146.76,146.67,65.79261437]
[1768420458048,0.04998484,146.73,146.7,0.05200441]
[1768420459447,66.29490859,146.73,146.7,0.05200441]
[1768420459755,0.04998484,146.73,146.67,65.79261437]
[1768420460747,0.04998484,146.73,146.69,72.39579571]
[1768420463561,0.04998484,146.73,146.69,66.25989571]
[1768420463757,0.04998484,146.73,146.69,0.04482753]
[1768420463758,61.30655831,146.73,146.69,0.04482753]
[1768420464156,0.04998484,146.73,146.69,0.04482753]
[1768420465164,61.30655831,146.73,146.69,0.04482753]
[1768420465355,61.30655831,146.73,146.63,152.89316818]
[1768420465662,61.25657347,146.73,146.63,152.89316818]
[1768420466361,0.04546057,146.69,146.67,0.04415338]
[1768420469662,0.04546057,146.69,146.63,86.6783]
[1768420470660,0.04546057,146.69,146.65,0.04931068]
[1768420471764,0.04546057,146.69,146.65,66.26437886]
[1768420474360,0.04546057,146.69,146.65,0.04931068]
[1768420474762,2.12868568,146.69,146.65,0.04931068]
[1768420474962,63.38525915,146.69,146.6,91.6994]
[1768420475264,63.33979858,146.69,146.6,152.91446818]
[1768420475457,63.33979858,146.69,146.61,66.21506818]
[1768420475657,61.25657347,146.69,146.61,72.35426818]
[1768420476056,0.05011717,146.66,146.64,0.04666573]
[1768420478166,61.25657347,146.7,146.64,0.04666573]
[1768420478861,63.33979858,146.71,146.64,0.04666573]
[1768420479365,0.04900443,146.69,146.64,0.04666573]
[1768420484964,0.04900443,146.69,146.64,66.26173391]
[1768420486964,63.33979858,146.74,146.64,68.34495902]
[1768420487165,63.33979858,146.74,146.64,68.29829329]
[1768420487461,69.47369858,146.74,146.65,6.1376]
[1768420487665,69.47369858,146.74,146.65,72.35266818]
[1768420487965,0.04766823,146.71,146.68,0.04418719]
[1768420492167,2.08322511,146.76,146.68,61.18255681]
[1768420492770,67.45418647,146.76,146.68,61.18255681]
[1768420493270,0.04408564,146.73,146.68,61.18255681]
[1768420493670,0.04408564,146.73,146.68,0.04418719]
[1768420493866,65.415047,146.73,146.68,0.04418719]
[1768420497874,0.04408564,146.73,146.68,61.18255681]
[1768420502172,0.04408564,146.73,146.68,69.40218192]
[1768420502481,0.04408564,146.73,146.68,67.31895681]
[1768420503675,65.415047,146.73,146.68,0.04418719]
[1768420504579,0.04408564,146.73,146.68,61.18255681]
[1768420506779,0.04408564,146.73,146.68,67.31885681]
[1768420507981,0.04408564,146.73,146.68,61.18255681]
[1768420512272,0.04408564,146.73,146.68,0.04418719]
[1768420513488,65.415047,146.73,146.68,0.04418719]
[1768420513986,0.04408564,146.73,146.68,61.18255681]
[1768420516488,0.04408564,146.73,146.68,0.04418719]
[1768420516489,65.415047,146.73,146.68,0.04418719]
[1768420517789,0.04408564,146.73,146.68,0.04418719]
[1768420522482,0.04408564,146.73,146.68,62.88971172]
[1768420528099,0.04408564,146.73,146.68,69.02581172]
[1768420530400,0.04408564,146.73,146.69,68.98142453]
[1768420534907,0.04408564,146.73,146.7,6.1355]
[1768420536695,0.04408564,146.73,146.71,6.1351]
[1768420536892,63.40433194,146.8,146.71,62.84552453]
[1768420537806,0.05033037,146.77,146.74,0.04801847]
[1768420538000,0.05063556,146.77,146.74,0.04680201]
[1768420542708,63.4549675,146.77,146.74,0.04680201]
[1768420543005,63.4549675,146.77,146.71,6.1347]
[1768420543601,64.8149675,146.77,146.67,62.84552453]
[1768420543804,0.04857535,146.73,146.71,0.04428001]
[1768420543997,0.04857535,146.73,146.67,62.84552453]
[1768420544197,0.04857535,146.73,146.67,68.98222453]
[1768420544605,63.45290729,146.73,146.63,80.54]
[1768420544908,63.40433194,146.74,146.67,0.04800462]
[1768420545999,0.04990484,146.72,146.67,0.04800462]
[1768420547107,63.45423678,146.72,146.67,0.04800462]
[1768420551008,63.45423678,146.72,146.61,103.75075324]
[1768420551009,68.06709002,146.72,146.61,70.28729319]
[1768420551214,62.14268837,146.69,146.61,65.28729319]
[1768420551510,62.14268837,146.69,146.58,65.28729319]
[1768420552111,0.04990882,146.65,146.62,0.04624524]
[1768420552512,0.04990882,146.65,146.58,65.28729319]
[1768420552513,62.19259719,146.65,146.58,65.28729319]
[1768420554115,62.19259719,146.65,146.6,0.0507084]
[1768420562710,62.19259719,146.65,146.55,71.42879319]
[1768420562915,62.19259719,146.65,146.55,65.28729319]
[1768420562916,62.14268837,146.65,146.55,65.28729319]
[1768420563420,62.14268837,146.65,146.57,6.1409]
[1768420563819,0.04790804,146.62,146.6,0.04797468]
[1768420564728,62.14268837,146.68,146.6,65.33526787]
[1768420565026,82.91767364,146.7,146.6,65.28729319]
[1768420565219,82.91767364,146.7,146.62,71.42599319]
[1768420565617,62.14268837,146.69,146.62,71.42599319]
[1768420565817,62.14268837,146.72,146.64,65.33140423]
[1768420566921,0.05000802,146.69,146.64,65.33140423]
[1768420567120,62.14268837,146.72,146.64,65.33140423]
[1768420567520,62.14268837,146.72,146.65,71.42479319]
[1768420568426,0.05121979,146.7,146.66,6.1371]
[1768420569522,0.05121979,146.7,146.64,6.1377]
[1768420569727,0.05121979,146.7,146.62,65.28729319]
[1768420570429,0.05121979,146.7,146.64,71.42519319]
[1768420570829,0.05121979,146.7,146.66,0.0429902]
[1768420571424,62.19390816,146.7,146.66,0.0429902]
[1768420571726,62.19390816,146.7,146.62,65.28729319]
[1768420572528,62.19390816,146.7,146.59,76.42719319]
[1768420572730,0.04418872,146.66,146.63,0.05009728]
[1768420573527,71.53094161,146.71,146.63,0.05009728]
[1768420574725,0.04510815,146.68,146.63,0.05009728]
[1768420577630,62.18779652,146.68,146.63,0.05009728]
[1768420579027,0.04510815,146.68,146.63,0.05009728]
[1768420580537,62.14268837,146.71,146.63,63.56197392]
[1768420581629,0.04438046,146.68,146.63,63.56197392]
[1768420581834,0.04438046,146.68,146.63,69.70027392]
[1768420583723,0.04438046,146.68,146.64,66.66168166]
[1768420583929,86.59431302,146.74,146.64,66.66168166]
[1768420584130,62.51202712,146.74,146.64,60.52368166]
[1768420584639,62.51202712,146.74,146.66,60.52368166]
[1768420585037,0.04372777,146.71,146.69,0.05066234]
[1768420585434,62.51202712,146.76,146.69,0.05066234]
[1768420585941,62.51202712,146.76,146.69,60.574344]
[1768420586132,68.64402712,146.79,146.69,60.574344]
[1768420586438,0.04651376,146.75,146.73,0.04772487]
[1768420586735,0.04651376,146.75,146.69,60.52368166]
[1768420587040,0.04651376,146.75,146.69,66.65958166]
[1768420587634,143.09202712,146.8,146.71,60.56802188]
[1768420587830,62.51202712,146.79,146.71,60.52368166]
[1768420588638,0.04902363,146.76,146.74,0.05014643]
[1768420588839,0.04902363,146.76,146.71,60.52368166]
[1768420589846,0.04902363,146.76,146.72,0.04736869]
[1768420590356,62.56105075,146.76,146.67,65.52368166]
[1768420590555,62.51202712,146.76,146.67,60.52368166]
[1768420590756,62.51202712,146.76,146.67,66.66038166]
[1768420590952,62.51202712,146.77,146.64,181.0578]
[1768420590953,62.51202712,146.74,146.65,60.52368166]
[1768420591458,0.04755521,146.71,146.68,0.04560561]
[1768420594855,62.51202712,146.75,146.68,60.56928727]
[1768420595755,0.05235435,146.73,146.68,60.56928727]
[1768420596954,70.72714614,146.78,146.7,60.52368166]
[1768420597362,64.59464614,146.78,146.7,60.52368166]
[1768420598060,0.04511986,146.75,146.73,0.04648846]
[1768420598663,0.04511986,146.75,146.73,0.04648846]
[1768420599162,62.55714698,146.75,146.67,60.52368166]
[1768420599364,62.51202712,146.75,146.67,62.60630068]
[1768420599664,64.59464614,146.78,146.67,62.60630068]
[1768420599861,68.64432712,146.78,146.69,60.52368166]
[1768420600162,0.04606144,146.75,146.72,0.0518704]
[1768420611670,64.59464614,146.78,146.72,0.0518704]
[1768420612169,2.08261902,146.77,146.72,0.0518704]
[1768420612467,59.82482958,146.74,146.67,59.93046282]
[1768420612671,59.82482958,146.74,146.61,95.4986]
[1768420612672,59.82482958,146.72,146.63,62.01308184]
[1768420612971,59.82482958,146.72,146.63,67.01308184]
[1768420613476,0.05194551,146.69,146.66,0.04577036]
[1768420622368,0.05194551,146.69,146.66,59.97623318]
[1768420622569,61.9074486,146.76,146.68,59.93046282]
[1768420623071,61.9074486,146.76,146.68,66.06666282]
[1768420623477,0.04900728,146.73,146.71,0.04617081]
[1768420625782,61.9074486,146.79,146.71,59.97663363]
[1768420626079,61.9074486,146.79,146.71,59.93046282]
[1768420626779,0.04714735,146.76,146.74,0.04329093]
[1768420631386,0.04714735,146.76,146.71,66.06536282]
[1768420632488,0.04714735,146.76,146.72,0.04614524]
[1768420634583,0.04714735,146.76,146.72,59.97660806]
[1768420634788,59.82482958,146.79,146.72,66.11120806]
[1768420635888,0.04420386,146.77,146.72,66.11120806]
[1768420639098,0.04420386,146.77,146.72,59.97660806]
[1768420644095,59.02662216,146.84,146.73,95.4219]
[1768420644296,61.10924118,146.83,146.74,58.44739756]
[1768420644497,59.02662216,146.81,146.74,56.36477854]
[1768420645098,0.04689607,146.79,146.76,0.04630222]
[1768420650407,0.04689607,146.79,146.72,61.36477854]
[1768420650408,59.07351823,146.79,146.72,61.36477854]
[1768420650703,59.07351823,146.79,146.72,56.36477854]
[1768420651404,59.07351823,146.79,146.74,0.05063793]
[1768420652403,0.04689607,146.79,146.74,0.05063793]
[1768420654807,59.02662216,146.81,146.74,62.54921647]
[1768420655706,59.02662216,146.81,146.74,56.41541647]
[1768420655906,0.0523506,146.79,146.74,56.41541647]
[1768420659902,0.0523506,146.79,146.74,62.54921647]
[1768420662710,0.0523506,146.79,146.74,56.41541647]
[1768420664119,65.15562216,146.86,146.74,59.66609597]
[1768420664310,65.15562216,146.86,146.74,64.61545804]
[1768420665104,0.04613841,146.81,146.79,0.04603532]
[1768420665313,0.04611643,146.81,146.79,0.04603532]
[1768420666916,0.04611643,146.81,146.75,56.36477854]
[1768420667114,59.07273859,146.81,146.75,56.36477854]
[1768420667415,59.07273859,146.81,146.72,56.36477854]
[1768420667716,59.02662216,146.81,146.72,56.36477854]
[1768420668117,0.05161616,146.78,146.75,0.04675048]
[1768420672117,0.05161616,146.78,146.73,54.49042477]
[1768420673213,0.05161616,146.78,146.74,0.05216779]
[1768420676811,0.05161616,146.78,146.74,54.54259256]
[1768420679420,6.1296,146.85,146.74,54.54259256]
[1768420679724,65.20777747,146.85,146.74,62.74110427]
[1768420680322,59.07817747,146.85,146.77,54.49042477]
[1768420680524,0.04396919,146.81,146.78,54.53630441]
[1768420681018,59.07817747,146.85,146.78,54.53630441]
[1768420681422,6.1288,146.87,146.78,54.53630441]
[1768420681630,65.20697747,146.87,146.78,54.49042477]
[1768420682221,0.0487074,146.84,146.81,0.04784405]
[1768420682423,0.0487074,146.84,146.79,54.49042477]
[1768420683322,0.0487074,146.84,146.8,0.04533562]
[1768420683826,0.0487074,146.84,146.8,54.53576039]
[1768420686026,59.12688487,146.84,146.8,0.04533562]
[1768420690821,0.0487074,146.84,146.8,54.53576039]
[1768420694031,0.0487074,146.84,146.8,37.2855506]
[1768420695230,0.0487074,146.84,146.81,0.04355088]
[1768420696131,60.48688487,146.84,146.75,5.0]
[1768420696334,62.32885697,146.84,146.74,54.49042477]
[1768420696727,65.20877747,146.82,146.74,54.49042477]
[1768420696923,59.07817747,146.82,146.72,54.49042477]
[1768420697242,0.04451817,146.78,146.72,54.49042477]
[1768420698232,0.04451817,146.78,146.74,54.5357332]
[1768420698437,62.32885697,146.82,146.74,54.5357332]
[1768420699429,0.05056677,146.79,146.74,54.5357332]
[1768420709046,60.52634636,146.84,146.74,54.5357332]
[1768420709242,60.52634636,146.84,146.74,54.49042477]
[1768420710040,60.52634636,146.84,146.78,0.04403895]
[1768420710240,0.05190797,146.8,146.78,0.04403895]
[1768420710740,60.52634636,146.84,146.78,54.65621374]
[1768420710937,60.52634636,146.84,146.78,0.04403895]
[1768420712347,0.04476101,146.82,146.78,0.04403895]
[1768420716544,54.44110737,146.82,146.78,0.04403895]
[1768420716752,56.52098541,146.82,146.74,59.61217479]
[1768420716951,56.52098541,146.82,146.74,54.61217479]
[1768420717146,54.39634636,146.8,146.74,54.61217479]
[1768420717348,54.39634636,146.8,146.72,54.61217479]
[1768420717849,0.04921452,146.77,146.75,0.05186549]
[1768420724652,0.04921452,146.77,146.7,54.61217479]
[1768420724955,0.04921452,146.77,146.7,56.69205283]
[1768420725555,0.04921452,146.77,146.72,0.04971069]
[1768420725756,0.04921452,146.77,146.72,54.66188548]
[1768420726054,56.4762244,146.81,146.72,54.66188548]
[1768420726251,56.4762244,146.81,146.74,54.61217479]
[1768420726850,0.04562264,146.79,146.76,0.04434706]
[1768420730770,52.24394504,146.83,146.76,52.25599346]
[1768420731279,58.37404504,146.83,146.76,52.25599346]
[1768420731767,0.04294032,146.81,146.76,52.25599346]
[1768420736978,0.04294032,146.81,146.76,58.38889346]
[1768420737283,50.164067,146.85,146.78,52.2116464]
[1768420737479,50.164067,146.85,146.78,58.3438464]
[1768420737683,50.164067,146.87,146.78,58.3438464]
[1768420738180,0.04903854,146.84,146.81,0.04732965]
[1768420738377,0.04903854,146.84,146.8,52.2116464]
[1768420739478,0.04903854,146.84,146.81,0.04423125]
[1768420740569,0.04903854,146.84,146.81,52.25587765]
[1768420741685,20.66505377,146.91,146.84,52.2116464]
[1768420741686,50.164067,146.91,146.84,52.2116464]
[1768420742476,0.04461193,146.89,146.86,0.04870831]
[1768420745484,50.20867893,146.89,146.8,58.3426464]
[1768420745683,50.164067,146.89,146.8,60.42252444]
[1768420746087,50.164067,146.89,146.8,54.29152444]
[1768420746383,0.04966627,146.86,146.83,0.0501836]
[1768420748287,50.21373327,146.86,146.8,52.2116464]
[1768420748476,50.21373327,146.86,146.77,54.29152444]
[1768420748675,50.164067,146.86,146.77,54.29152444]
[1768420749288,0.04383684,146.83,146.8,0.04795231]
[1768420750581,52.28778188,146.83,146.74,132.7316464]
[1768420750781,50.164067,146.8,146.72,52.2116464]
[1768420750987,50.164067,146.8,146.74,52.2116464]
[1768420751184,50.164067,146.82,146.74,52.2116464]
[1768420751587,52.24394504,146.84,146.77,0.05150701]
[1768420751786,52.24394504,146.84,146.76,52.2116464]
[1768420752091,50.164067,146.87,146.78,52.2116464]
[1768420752289,52.24394504,146.87,146.78,52.2116464]
[1768420752589,50.2141042,146.84,146.75,54.29152444]
[1768420752788,52.24394504,146.83,146.75,52.2116464]
[1768420753486,2.07987804,146.85,146.75,54.29152444]
[1768420753682,50.164067,146.86,146.79,0.05150072]
[1768420753888,52.24394504,146.86,146.77,52.2116464]
[1768420754389,52.24394504,146.86,146.77,54.29152444]
[1768420754690,0.04624707,146.83,146.8,0.04351566]
[1768420757395,50.21031407,146.83,146.76,52.2116464]
[1768420758189,0.04624707,146.83,146.76,58.3444464]
[1768420758492,0.04624707,146.83,146.78,52.25949461]
[1768420759283,52.24394504,146.86,146.78,52.25949461]
[1768420759892,50.164067,146.86,146.78,52.25949461]
[1768420760284,0.04493006,146.83,146.78,52.25949461]
[1768420760891,0.04493006,146.83,146.78,58.39159461]
[1768420762796,54.16263466,146.83,146.78,0.04784821]
[1768420766799,52.08275662,146.83,146.78,0.04784821]
[1768420767000,54.16263466,146.83,146.78,0.04784821]
[1768420775411,52.08275662,146.83,146.78,0.04784821]
[1768420781612,55.33305699,146.83,146.78,0.04784821]
[1768420782312,52.08275662,146.83,146.78,0.04784821]
[1768420787517,0.04493006,146.83,146.78,48.8157875]
[1768420788607,0.04493006,146.83,146.78,54.9479875]
[1768420799923,55.73832259,146.89,146.8,49.12423658]
[1768420801121,0.04523081,146.86,146.83,0.04495608]
[1768420801322,49.6555534,146.86,146.8,49.12423658]
[1768420802229,49.6555534,146.86,146.82,0.04401673]
[1768420802529,49.6555534,146.86,146.79,5.0]
[1768420802722,55.7844534,146.86,146.79,5.0]
[1768420803531,55.7844534,146.86,146.81,0.04934944]
[1768420804630,49.61032259,146.84,146.79,5.0]
[1768420805633,0.04735381,146.83,146.8,0.04750909]
[1768420805833,6.1288,146.87,146.8,49.17174567]
[1768420806028,55.73912259,146.87,146.8,49.12423658]
[1768420806533,55.73912259,146.87,146.77,6.1326]
[1768420806534,55.73912259,146.87,146.78,49.12423658]
[1768420807029,0.04857541,146.84,146.81,0.04975594]
[1768420807427,49.61032259,146.87,146.81,0.04975594]
[1768420808335,0.04738444,146.85,146.81,0.04975594]
[1768420808543,0.04738444,146.85,146.81,49.17399252]
[1768420808838,49.61032259,146.99,146.85,49.12423658]
[1768420809036,49.61032259,146.99,146.89,49.12423658]
[1768420809629,0.04880706,146.95,146.89,49.12423658]
[1768420809832,49.65912965,146.95,146.89,49.12423658]
[1768420810234,0.04880706,146.95,146.89,49.12423658]
[1768420810634,49.65912965,146.95,146.89,49.12423658]
[1768420810835,49.65912965,146.95,146.87,9.37830037]
[1768420810836,49.65912965,146.95,146.91,0.05109167]
[1768420814536,52.90943002,146.95,146.85,49.12423658]
[1768420814844,52.86062296,146.95,146.85,49.12423658]
[1768420815043,58.98612296,146.95,146.85,49.12423658]
[1768420815636,0.04871602,146.91,146.89,0.04659211]
[1768420815834,49.61032259,146.95,146.89,0.04659211]
[1768420817739,0.050011,146.93,146.89,0.04659211]
[1768420817946,49.66033359,146.93,146.89,0.04659211]
[1768420818239,0.050011,146.93,146.89,0.04659211]
[1768420818442,49.66033359,146.93,146.89,0.04659211]
[1768420820140,49.66033359,146.93,146.86,49.12423658]
[1768420821236,49.66033359,146.93,146.88,0.04365939]
[1768420831655,46.69339826,146.9,146.8,48.18090954]
[1768420831959,46.69339826,146.9,146.79,278.41570265]
[1768420832263,46.69339826,146.88,146.79,278.41570265]
[1768420832659,0.05053334,146.85,146.82,0.04859139]
[1768420836666,46.7439316,146.85,146.82,0.04859139]
[1768420836964,46.7439316,146.85,146.77,50.25967835]
[1768420836965,46.7439316,146.85,146.78,6.1321]
[1768420837267,46.7439316,146.85,146.78,54.31300954]
[1768420837469,48.77216707,146.84,146.77,5.0]
[1768420837761,0.04404961,146.82,146.79,0.0437848]
[1768420842361,48.81621668,146.82,146.73,48.18090954]
[1768420842565,48.77216707,146.8,146.73,48.18090954]
[1768420843570,48.81586877,146.78,146.7,48.18090954]
[1768420843874,48.77216707,146.78,146.7,48.18090954]
[1768420844474,0.04300322,146.75,146.7,48.18090954]
[1768420845666,0.04300322,146.75,146.71,0.04384547]
[1768420847374,46.69339826,146.73,146.65,54.31820954]
[1768420847679,2.07876881,146.73,146.65,48.18090954]
[1768420847872,2.07876881,146.73,146.67,48.18090954]
[1768420848074,48.77216707,146.75,146.67,48.18090954]
[1768420848270,0.04583841,146.72,146.7,0.05027843]
[1768420849575,46.73923667,146.72,146.65,48.18090954]
[1768420850169,46.69339826,146.7,146.62,48.18090954]
[1768420850479,2.07876881,146.72,146.62,50.25967835]
[1768420850778,2.07876881,146.72,146.66,0.04606778]
[1768420851874,0.05215356,146.7,146.66,0.04606778]
[1768420856184,44.20041676,146.7,146.62,43.27344484]
[1768420856779,44.20041676,146.7,146.62,49.41224484]
[1768420856980,44.20041676,146.7,146.62,43.27344484]
[1768420857280,44.1482632,146.68,146.59,125.85221365]
[1768420857586,44.1482632,146.66,146.59,43.27344484]
[1768420858081,44.1482632,146.66,146.54,176.0859]
[1768420858082,44.1482632,146.64,146.56,43.27344484]
[1768420858282,0.04711793,146.61,146.56,43.27344484]
[1768420858876,6.1373,146.66,146.56,50.77474484]
[1768420859076,2.07876881,146.66,146.56,43.27344484]
[1768420859284,44.1482632,146.66,146.58,43.27344484]
[1768420859680,48.20679439,146.66,146.58,43.27344484]
[1768420859877,2.07876881,146.65,146.58,43.27344484]
[1768420860077,0.04450226,146.63,146.61,0.04697681]
[1768420861886,0.04450226,146.63,146.56,49.41454484]
[1768420863089,0.04450226,146.63,146.57,51.49301365]
[1768420863386,44.1482632,146.66,146.57,51.49301365]
[1768420863583,44.1482632,146.66,146.57,45.35221365]
[1768420863789,44.1482632,146.66,146.55,51.49381365]
[1768420864177,6.1377,146.65,146.56,6.1413]
[1768420864382,0.04530481,146.62,146.59,0.04473005]
[1768420864585,42.06949439,146.65,146.59,0.04473005]
[1768420865686,0.0485821,146.63,146.59,0.04473005]
[1768420872795,42.06949439,146.68,146.61,45.35221365]
[1768420873499,42.06949439,146.68,146.61,51.49141365]
[1768420873990,42.06949439,146.7,146.63,45.40199899]
[1768420874197,42.06949439,146.73,146.65,45.35221365]
[1768420874997,42.06949439,146.73,146.65,51.48961365]
[1768420875198,0.04755054,146.7,146.68,0.04288909]
[1768420875393,0.04755054,146.7,146.65,45.35221365]
[1768420875593,42.06949439,146.73,146.65,45.35221365]
[1768420875789,48.20289439,146.76,146.67,45.35221365]
[1768420876499,0.04679084,146.73,146.7,0.04622044]
[1768420877402,0.04679084,146.73,146.67,45.35221365]
[1768420878201,0.04679084,146.73,146.67,43.27344484]